{"text_format":"1","workbook":"xlsx","n_sheets":7,"sheets":["Portada","Amenazas","Hoja2"," Vulpersonas","Vulrecursos"," Vulsistem","Analisis del riesgo"],"not_rendered":{"charts":0,"images":15,"macros":0,"external_links":1,"defined_names":2,"comments":1,"pivot_tables":0},"unopened":[],"bounds":{"document_bytes":16777216,"sheet_cells":100000,"rows_first":2000,"rows_last":500,"rows_between":2000,"halvings":0,"cell_chars":16384,"cell_head_chars":4096},"cells_cut":0,"cells_raw":0,"read":"whole","date_system":"1900"}

{"sheet":"Portada","index":0,"n_rows":27,"n_cols":22,"rows_kept":27,"cut":false,"hidden":false,"merged":[[21,0,21,16],[20,0,20,16],[22,17,22,20],[8,19,8,27],[9,4,9,27],[12,4,12,14],[12,15,12,20],[12,21,12,27],[11,15,11,20],[11,21,11,27],[14,0,14,28],[15,0,15,28],[17,0,17,4],[17,5,17,27],[16,21,16,25],[16,0,16,4],[16,16,16,20],[7,0,7,28],[25,17,25,28],[26,0,26,16],[25,0,25,16],[19,0,19,16],[22,0,22,16],[23,17,23,20],[24,0,24,16],[23,0,23,16],[24,17,24,20],[21,17,21,28],[22,21,22,28],[23,21,23,28],[24,21,24,28],[26,17,26,28],[19,17,19,28],[0,0,3,3],[0,4,3,28],[16,5,16,10],[20,17,20,28],[4,0,5,28],[12,1,12,3],[10,1,10,3],[10,4,10,14],[10,15,10,20],[10,21,10,27],[11,1,11,3],[11,4,11,14],[9,1,9,3],[8,1,8,3],[8,4,8,16],[8,17,8,18]]}
[null,null,null,null,"ANEXO 1: AMENAZAS Y ANÁLISIS DE VULNERABILIDAD\nESTACIÓN B-7 FERIAS"]
[]
[]
[]
[" ANÁLISIS DE RIESGO "]
[]
[]
["DATOS DE LA ORGANIZACIÓN"]
[null,"EMPRESA",null,null,"UNIDAD ADMINISTRATIVA ESPECIAL CUERPO OFICIAL DE BOMBEROS - SEDE FERIAS B7",null,null,null,null,null,null,null,null,null,null,null,null,"NIT",null,"899.999.061-9."]
[null,"ACTIVIDAD ECONÓMICA",null,null,"8423 Orden público y actividades de seguridad"]
[null,"DIRECCIÓN",null,null,"Cl. 77a #77-28",null,null,null,null,null,null,null,null,null,null,"TELÉFONO",null,null,null,null,null,3125021718]
[null,"CIUDAD",null,null,"Bogotá ",null,null,null,null,null,null,null,null,null,null,"DEPARTAMENTO",null,null,null,null,null,"Cundinamarca"]
[null,"No. COLABORADORES",null,null,25,null,null,null,null,null,null,null,null,null,null,"POBLACIÓN FLOTANTE",null,null,null,null,null,2]
[]
["INFORMACIÓN DEL ANÁLISIS DEL RIESGO"]
[]
["Fecha de Elaboración:",null,null,null,null,"22/04/2026",null,null,null,null,null,null,null,null,null,null,"Fecha de Revisión:"]
["Responsable de Elaboración:",null,null,null,null,"Nixon Bejarano - Lorena Gonzalez C."]
[]
["ITEMS EVALUACIÓN DEL RIESGO",null,null,null,null,null,null,null,null,null,null,null,null,null,null,null,null,"RESULTADO EVALUACIÓN"]
["AMENAZAS"]
["ANÁLISIS VULNERABILIDAD"]
["Personas",null,null,null,null,null,null,null,null,null,null,null,null,null,null,null,null,{"$f":"' Vulpersonas'!D32","v":2.75},null,null,null,{"$f":"' Vulpersonas'!E32","v":"BAJA"}]
["Recursos",null,null,null,null,null,null,null,null,null,null,null,null,null,null,null,null,{"$f":"Vulrecursos!D44","v":1.6263888888888889},null,null,null,{"$f":"Vulrecursos!E44","v":"MEDIA"}]
["Sistemas o Procesos",null,null,null,null,null,null,null,null,null,null,null,null,null,null,null,null,{"$f":"' Vulsistem'!D26","v":2.65},null,null,null,{"$f":"' Vulsistem'!E26","v":"BAJA"}]
["CONSOLIDADO ANÁLISIS DEL RIESGO"]
["PRIORIZACIÓN RIESGOS"]

{"sheet":"Amenazas","index":1,"n_rows":37,"n_cols":6,"rows_kept":37,"cut":false,"hidden":false,"merged":[[5,0,12,0],[0,0,2,5],[4,1,4,2],[26,0,31,0],[13,0,19,0],[12,1,12,2],[20,0,25,0],[20,1,20,2],[5,1,5,2],[6,1,6,2],[10,1,10,2],[7,1,7,2],[8,1,8,2],[9,1,9,2],[17,1,17,2],[13,1,13,2],[36,1,36,2],[33,1,33,2],[34,1,34,2],[35,1,35,2],[19,1,19,2],[26,1,26,2],[24,1,24,2],[25,1,25,2],[21,1,21,2],[22,1,22,2],[23,1,23,2],[30,1,30,2],[31,1,31,2],[27,1,27,2],[28,1,28,2],[29,1,29,2],[14,1,14,2],[15,1,15,2],[16,1,16,2],[11,1,11,2],[18,1,18,2]]}
["ANÁLISIS DE RIESGOS\nAMENAZAS"]
[]
[]
[]
["ORIGEN","AMENAZA",null,"TIPO DE AMENAZA ","DESCRIPCIÓN DE LA AMENAZA","CALIFICACIÓN DE LA AMENAZA "]
["NATURAL","Movimientos sísmicos",null,"EXTERNA","Probables movimientos vibratorios, rápidos y violentos de la superficie terrestre, provocados por perturbaciones en el interior de la Tierra (choque de placas tectónicas)","PROBABLE"]
[null,"Vientos fuertes",null,"EXTERNA","Aumento de la intensidad de los vientos durante intervalos cortos de tiempo, con valores superiores a 46 kph. Pueden causar daños a edificaciones, especialmente a cubiertas, tejas y ventanas; caída de árboles y objetos. (En Julio y Agosto se incrementan los vientos fuertes en Bogotá) - Referencia: https://www.bomberosbogota.gov.co/noticias/viento-no-se-lleve-tu-seguridad","PROBABLE"]
[null,"Tormenta eléctrica (descarga eléctrica)",null,"EXTERNA","Las tormentas eléctricas son descargas violentas de electricidad atmosférica, que se manifiestan con rayos o chispas, emiten un resplandor breve de relámpago (luz) y un trueno (sonido)","PROBABLE"]
[null,"Inundación ",null,"EXTERNA","Una inundación se produce cuando hay un rápido crecimiento del nivel del agua que cubre o llena determinadas áreas.Es importante resaltar que las inundaciones hacen referencia a láminas de agua mayores de 60 cm","PROBABLE"]
[null,"Encharcamiento",null,"EXTERNA","Una inundación se produce cuando hay un rápido crecimiento del nivel del agua que cubre o llena determinadas áreas.Los encharcamientos a láminas de agua menores de 30 cm. (Han tenido encharcamientos por filtraciones de Agua)","PROBABLE"]
[null,"Enfermedades endemicas",null,"INTERNA - EXTERNA","Se puede presentar dengue por picadura de mosquitos debido al humedal.","POSIBLE"]
[null,"Pandemias ",null,"INTERNA","Una pandemia es una enfermedad infecciosa que se propaga a nivel global, afectando a un gran número de personas en múltiples países o regiones. Se caracteriza por la rápida propagación del agente patógeno, que puede ser un virus, bacteria u otro microorganismo, y la capacidad de causar una amplia gama de casos, desde leves hasta graves. Las pandemias pueden tener un impacto significativo en la salud pública, la sociedad y la economía, y su control a menudo requiere medidas de salud pública coordinadas a nivel internacional. (Última Pandemia . COVID 19 - Inició el 6 de Marzo de 2020 y la emergencia sanitaria terminó el 30 de Junio de 2022) - Referencias: https://saludata.saludcapital.gov.co/osb/?s=fin+pandemia y Resolución 666 de 2022","PROBABLE"]
[null,"Granizadas",null,"EXTERNA","El granizo, por lo tanto, es una precipitación sólida. Se compone de pequeñas esferas de hielo, con un diámetro habitual de entre cinco y cincuenta milímetros. El granizo se genera en las nubes de tipo cumulonimbo.","PROBABLE"]
["TECNOLOGICOS","Incendio",null,"INTERNA","Un incendio es un evento no controlado de fuego que puede causar daño a propiedades, personas y el entorno.","POSIBLE"]
[null,"Fallas estructurales",null,"INTERNA - EXTERNA","Las fallas estructurales se refieren a la pérdida de integridad o estabilidad de edificios, puentes u otras estructuras.","POSIBLE"]
[null,"Incendio de vehículos",null,"INTERNA","Son incendios que involucran vehículos, como automóviles, camiones o trenes. ","POSIBLE"]
[null,"Explosión",null,"INTERNA - EXTERNA","Una explosión es la liberación súbita de energía en forma de calor, luz, presión y ruido.","POSIBLE"]
[null,"Eléctrico",null,"INTERNA","Emergencias eléctricas pueden incluir cortocircuitos, electrocuciones o apagones. ","PROBABLE"]
[null,"Inundaciones ",null,"INTERNA"," Por falta de mantenimiento  en las fuentes hidráulicas de agua potable  y aguas residuales  de la instalaciones.","PROBABLE"]
[null,"Mecánico",null,"INTERNA","daños que se puedan presentar en las  maquinarias y erramientas que usan ","POSIBLE"]
["    VIAS  ","Accidentes de tránsito internos",null,"EXTERNA","accidente que se puede presentar en imedaciones de la estacion   ","POSIBLE"]
[null,"Accidentes de tránsito ",null,"INTERNA - EXTERNA","Por el choque de vehículos al momento de entrar o salir de la estación ya que el carro entra en reversa.","PROBABLE"]
[null,"Acciones inseguras de actores viales / exceso de velocidad / exceso de confianza / Utilización de elementos distractores / Sueño",null,"INTERNA - EXTERNA","los que se pueden presentar al ser una cale residencial ","POSIBLE"]
[null,"Fallas del vehículo",null,"INTERNA - EXTERNA"," Falta de mantenimiento y daño en el motor de los vehiculos de bomberos  y vehículos de uso personnal. ","PROBABLE"]
[null,"Intensidad del tráfico",null,"EXTERNA","Por la cantidad de carros que transitan al ser una zona residencial.","PROBABLE"]
[null,"Estado de la infraestructura vial / Falta de iluminación / Falta de señalización ",null,"EXTERNA","vehículo se debe guardar en reversa y la calle es residencial lo que dificulta un poco al no tener señalización y buena iluminación","PROBABLE"]
["SOCIAL","Hurto ",null,"EXTERNA","Se puede presentar por tener maquinarias importantes en la estación, adicional puertas de acceso d evehiculos permanece avierta","PROBABLE"]
[null,"Asalto",null,"EXTERNA","Un asalto es un delito que involucra la amenaza o el uso de violencia, o el empleo de amenazas verbales o físicas, para llevar a cabo un robo u otro acto ilegal. A menudo, implica la confrontación directa con la víctima y la posibilidad de lesiones físicas.","PROBABLE"]
[null,"Secuestros",null,"EXTERNA","El secuestro es un delito en el que una persona es detenida o retenida en contra de su voluntad por parte de otra persona o grupo. Esto puede ser con fines de extorsión, rescate, control o coacción, y puede durar desde un breve período de tiempo hasta un secuestro prolongado.","POSIBLE"]
[null,"Asonadas",null,"EXTERNA","Las asonadas son disturbios o desórdenes públicos caracterizados por la violencia y la agitación. En general, involucran a grupos de personas que protestan, se rebelan o causan disturbios en la vía pública, a menudo en respuesta a situaciones políticas o sociales, se han presnetado en cercanias por entidades de fuerza publica","POSIBLE"]
[null,"Terrorismo",null,"EXTERNA","El terrorismo es el uso sistemático de la violencia o la amenaza de violencia con la intención de crear miedo, desestabilizar la sociedad y lograr objetivos políticos, religiosos, ideológicos o sociales. Los actos terroristas suelen ser llevados a cabo por grupos o individuos que buscan provocar un impacto significativo y generar temor en la población.","POSIBLE"]
[null,"Concentraciones masivas",null,"EXTERNA","Se refiere a la reunión de un gran número de personas en un lugar específico y en un momento determinado. Estas concentraciones pueden tener diversos propósitos, como manifestaciones políticas, eventos deportivos, conciertos, celebraciones religiosas o sociales, y suelen requerir medidas de seguridad y logística para garantizar el orden y la seguridad de los asistentes.","POSIBLE"]
[]
[null,"EVENTO",null,"COLOR ASIGNADO","COMPORTAMIENTO","QUE SIGNIFICA"]
[null,"POSIBLE",null,1,"Es aquel fenómeno que puede suceder o que es factible porque no existen razones históricas y científicas para decir que esto no sucederá.","Nunca ha sucedido"]
[null,"PROBABLE",null,2,"Es aquel fenómeno esperado del cual existen razones y argumentos técnicos científicos para creer que sucederá.","Ya ha ocurrido"]
[null,"INMINENTE",null,3,"Es aquel fenómeno esperado que tiene alta probabilidad de ocurrir.","Evidente, detectable"]

{"sheet":"Hoja2","index":2,"n_rows":14,"n_cols":6,"rows_kept":14,"cut":false,"hidden":true,"merged":[]}
[]
[]
[]
[]
[]
[]
[]
[null,null,null,"EXTERNA",null,"POSIBLE"]
[null,null,null,"INTERNA",null,"PROBABLE"]
[null,null,null,"INTERNA - EXTERNA",null,"INMINENTE"]
[]
[null,null,null,"SI ",1]
[null,null,null,"NO ",0]
[null,null,null,"PARCIAL",0.5]

{"sheet":" Vulpersonas","index":3,"n_rows":40,"n_cols":5,"rows_kept":40,"cut":false,"hidden":false,"merged":[[20,0,20,1],[21,0,21,1],[18,4,18,6],[19,4,19,6],[20,4,20,6],[21,4,21,6],[29,0,29,1],[29,4,29,6],[31,0,31,2],[30,0,30,2],[27,0,27,1],[27,4,27,6],[28,0,28,1],[28,4,28,6],[33,3,33,6],[30,4,30,6],[33,0,35,1],[31,4,31,6],[34,3,34,6],[35,3,35,6],[12,4,12,6],[22,0,22,1],[25,0,25,1],[26,0,26,1],[24,0,24,6],[25,4,25,6],[26,4,26,6],[23,4,23,6],[12,0,12,1],[13,0,13,1],[15,0,15,1],[23,0,23,2],[16,0,16,2],[18,0,18,1],[22,4,22,6],[19,0,19,1],[7,0,7,6],[8,4,8,6],[9,4,9,6],[10,4,10,6],[11,4,11,6],[11,0,11,1],[0,0,2,6],[37,1,39,2],[4,0,4,6],[17,0,17,6],[5,0,5,6],[13,4,13,6],[15,4,15,6],[16,4,16,6],[3,0,3,3],[14,0,14,1],[14,4,14,6],[6,0,6,1],[8,0,8,1],[9,0,9,1],[10,0,10,1],[6,4,6,6]]}
["ANÁLISIS DE RIESGOS"]
[]
[]
[]
["EVALUACIÓN DE LA VULNERABILIDAD ELEMENTO: PERSONAS"]
["Para diligenciar la columna \"RESPUESTA\" debe colocar:\n\nSI              = Cuando el aspecto existe o tiene un nivel bueno. El puntaje asignado es igual a 1\nNO            = Cuando el aspecto no existe o tiene un nivel deficiente. El puntaje asignado es igual a 0\nPARCIAL = Cuando la implementación no está terminada o tiene un nivel regular. El puntaje asignado es igual a 0,5"]
["ASPECTO A EVALUAR EN EL ELEMENTO PERSONAS",null,"RESPUESTA","CALIFICACION","OBSERVACIONES"]
["1.GESTIÓN ORGANIZACIONAL"]
["¿Existe una política general en SST y Seguridad Vial, donde se indica la prevención y preparación para emergencias y se encuentra divulgada ?",null,"SI ",1,"Politica General SST:“La UAE Cuerpo Oficial de Bomberos de Bogotá esta comprometida con la protección de la salud y la seguridad de los servidores y contratistas, mediante la promoción de la salud física y mental, la prevención de enfermedades y accidentes en el entorno laboral, integrando metodologías de identificación y control de peligros, reducción de riesgos, y de esta manera generar ambientes de trabajo seguros que garanticen el bienestar social de sus colaboradores y partes interesadas”.\n\nLa Política de Seguridad Vial de la Unidad Administrativa Especial Cuerpo Oficial de Bomberos de Bogotá, tiene como objeto garantizar la seguridad vial de sus actores viales a través del diseño, implementación, mantenimiento y mejora continua del plan estratégico de seguridad vial y en cumplimiento a los requisitos legales aplicables\n\n3.\tOBJETIVOS DE SEGURIDAD VIAL\n•\tIdentificar, y promover la reducción de los riesgos viales\n•\tEstructurar programas de gestión de riesgos críticos y factores de desempeño que mitiguen los riesgos viales.\n•\tPromover una cultura orientada a la generación de buenas prácticas en seguridad vial, con la participación de los funcionarios y partes interesadas"]
["¿A los empleados se les ha asignado  responsabilidades específicas para emergencias?",null,"PARCIAL",0.5,"La asignación de responsabilidades específicas para la atención de emergencias:\n\nEn estaciones no se cuenta con dicha asignación, sin embargo, los jefes (tenientes, sargentos) son los comandantes de los incidentes y quienes generan las ordenes correspondientes (jefes de brigada), los demás operativos (cabos y bomberos) contarían como brigadas contra incendios y derrames, brigada de evacuación y rescate y brigada de primeros auxilios. "]
["¿La Organización promueve activamente la participación de sus trabajadores en un programa de preparación para emergencias?",null,"SI ",1,"Anualmente la entidad cuenta con un Plan Institucional de Capacitación donde se preparan a los/as servidores/as para la atención de las diferentes emergencias de la ciudad."]
["¿Existe un esquema organizacional para la respuesta a emergencias, con funciones asignadas (Brigada de emergencias - Comité de emergencias)?",null,"PARCIAL",0.5,"La asignación del esquema organizacional para la respuesta a emergencias corresponde al SCI y a las designaciones que realice periodicamente el comandante del incidente. "]
["¿Han establecido mecanismos de interacción con su entorno que faciliten dar respuesta apropiada a los eventos que se puedan presentar? (Comités de Ayuda Mutua –CAM, Mapa Comunitario de Riesgos, Sistemas de Alerta Temprana – SAT, etc.)",null,"PARCIAL",0.5,"La estación realiza mesa de trabajos como comité de ayuda mutua con la alcaldía y otras entidades."]
["¿Existen instrumentos o formatos para realizar inspecciones a las áreas para identificar condiciones inseguras que puedan generar emergencias ?",null,"SI ",1,"Se evidencia que se cuentan con los formatos de inspecciones los cuales realizan en todas las sedes por  el area SST según lo referido por la subdirección de gestión humana SST. Documento referencia: GT-PR27-FT05 Matriz de Condiciones Inseguras. "]
["¿Existen instrumentos o formatos para realizar inspecciones a los equipos utilizados en emergencias?",null,"SI ",1,"Se evidencia que se cuentan con los formatos de inspecciones los cuales realizan en todas las sedes por  el area SST según lo referido por la subdirección de gestión humana SST. Ejemplo de Formato: GT-PR27-FT04"]
["¿Se mantienen actualizados los planes de emergencias?",null,"PARCIAL",0.5,"Se esta trabajando en la actualización del plan de Emergencias  "]
["Promedio Gestión Organizacional",null,null,{"$f":"AVERAGE(D9:D16)","v":0.75},{"$f":"IF(D17=\"\",\"\",IF($D17<0.34,\"MALO\",IF(AND($D17>=0.34,$D17<0.68),\"REGULAR\",\"BUENO\")))","v":"BUENO"}]
["2. CAPACITACION Y ENTRENAMIENTO"]
["¿Se cuenta con un programa de capacitación en prevención y control de emergencias?",null,"SI ",1,"Anualmente la entidad cuenta con un Plan Institucional de Capacitación donde se preparan a los/as servidores/as para la atención de las diferentes emergencias de la ciudad."]
["¿Todos los miembros de la sede  han sido  capacitados de acuerdo al programa de capacitación en prevención y respuesta a emergencias?",null,"SI ",1,"Anualmente la entidad cuenta con un Plan Institucional de Capacitación donde se preparan a los/as servidores/as para la atención de las diferentes emergencias de la ciudad."]
["¿El personal de la brigada  - comité, ha recibido entrenamiento y capacitación en temas de prevención y control de emergencias ?",null,"SI ",1,"El personal esta capacitado en temas de prevención de emergencias, para la atención de emergencias externas que se aplican dentro de la estación."]
["¿Esta divulgado el plan de emergencias y evacuación?",null,"SI ",1,"Se evidencia última divulgación el día 4 de Abril del año 2022, se realizó la divulgación en la página web de la Entidad"]
["Se cuenta con manuales, folletos como material de difusión en temas de prevención y control de emergencias ?",null,"SI ",1,"En página de internet bomberos se pública información de interes en emergencias : Ejemplo -Se evidencia video de Acciones seguras que debes hacer en una emergencia #TemporadadeVientos: https://bomberosbogota.gov.co/content/prevencion-cometas"]
["Promedio Capacitación y Entrenamiento",null,null,{"$f":"AVERAGE(D19:D23)","v":1},{"$f":"IF(D24=\"\",\"\",IF($D24<0.34,\"MALO\",IF(AND($D24>=0.34,$D24<0.68),\"REGULAR\",\"BUENO\")))","v":"BUENO"}]
["3. CARACTERÍSTICAS DE SEGURIDAD"]
["¿Se ha identificado y clasificado el personal fijo y flotante en los diferentes horarios laborales y no laborales (menores de edad, adultos mayores, personas con discapacidad física)? ",null,"SI ",1,"Se identifican 25 funcionarios de planta y 2 contratista."]
["¿Se han contemplado acciones específicas teniendo en cuenta la clasificación de la población en la preparación y respuesta a emergencias?",null,"SI ",1,"Se tienen contempladas acciones para dar respuesta a emergencias."]
["Se cuenta con elementos de protección,  suficientes y adecuados para el personal, en el desarrollo de sus actividades rutinarias?",null,"SI ",1,"Se evidencian elementos de protección personal  en Sede y Casilleros en donde los almacenan."]
["Se cuenta con elementos de protección personal para la respuesta para emergencias, de acuerdo con las  amenazas identificadas?",null,"SI ",1,"Se evidencian elementos de protección personal en Sede y Casilleros en donde los almacenan."]
["Se cuenta con un esquema de seguridad física?",null,"SI ",1,"En las instalaciones siempre se queda uno de los colaboradores para realizar la vigilancia, adicional se cuenta con camaras de seguridad."]
["Promedio Características de Seguridad",null,null,{"$f":"AVERAGE(D26:D30)","v":1},{"$f":"IF(D31=\"\",\"\",IF($D31<0.34,\"MALO\",IF(AND($D31>=0.34,$D31<0.68),\"REGULAR\",\"BUENO\")))","v":"BUENO"}]
["VULNERABILIDAD PERSONAS (SUMA TOTAL DE PROMEDIOS)",null,null,{"$f":"D17+D24+D31","v":2.75},{"$f":"IF(D32<=1,\"ALTA\",IF(AND(D32>1,D32<=2),\"MEDIA\",\"BAJA\"))","v":"BAJA"}]
[]
["Interpretación de la vulnerabilidad por cada aspecto",null,"BUENO","Si el resultado esta dentro del rango 0,68 a 1"]
[null,null,"REGULAR","Si el resultado esta dentro del rango 0,34 a 0,67"]
[null,null,"MALO","Si el resultado esta dentro del rango 0 a 0,33"]
[]
[null,"Interpretación de la vulnerabilidad por cada elemento",null,"0.0 - 1,00","ALTA"]
[null,null,null,"1,01 - 2,00","MEDIA"]
[null,null,null,"2,01 - 3,00","BAJA"]

{"sheet":"Vulrecursos","index":4,"n_rows":52,"n_cols":5,"rows_kept":52,"cut":false,"hidden":false,"merged":[[25,0,25,1],[24,0,24,1],[29,0,29,1],[20,0,20,1],[24,4,24,6],[25,4,25,6],[27,4,27,6],[26,4,26,6],[28,4,28,6],[26,0,26,1],[27,0,27,1],[28,0,28,1],[21,0,21,1],[20,4,20,6],[23,0,23,1],[22,0,22,1],[18,0,18,1],[6,0,6,1],[8,0,8,1],[9,0,9,1],[10,0,10,1],[11,0,11,1],[15,0,15,1],[16,0,16,1],[17,0,17,1],[12,0,12,1],[13,0,13,2],[7,0,7,6],[8,4,8,6],[42,0,42,2],[43,0,43,2],[33,0,33,1],[34,0,34,1],[35,0,35,1],[36,0,36,1],[37,0,37,1],[39,0,39,1],[40,0,40,1],[41,0,41,1],[38,0,38,1],[30,0,30,1],[14,0,14,6],[4,0,4,6],[5,0,5,6],[6,4,6,6],[18,4,18,6],[21,4,21,6],[19,4,19,6],[23,4,23,6],[22,4,22,6],[30,4,30,6],[29,4,29,6],[19,0,19,1],[10,4,10,6],[11,4,11,6],[12,4,12,6],[0,0,2,6],[9,4,9,6],[15,4,15,6],[16,4,16,6],[17,4,17,6],[13,4,13,6],[31,4,31,6],[32,0,32,6],[33,4,33,6],[31,0,31,2],[39,4,39,6],[40,4,40,6],[41,4,41,6],[42,4,42,6],[34,4,34,6],[35,4,35,6],[36,4,36,6],[37,4,37,6],[38,4,38,6],[49,1,51,2],[43,4,43,6],[44,0,44,6],[45,3,45,6],[46,3,46,6],[47,3,47,6],[45,0,47,1]]}
["ANÁLISIS DE RIESGOS"]
[]
[]
[]
["EVALUACIÓN DE LA VULNERABILIDAD ELEMENTO: RECURSOS"]
["Para diligenciar la columna \"RESPUESTA\" debe colocar:\n\nSI            = Cuando el aspecto existe o tiene un nivel bueno. El puntaje asignado es igual a 1\nNO          = Cuando el aspecto no existe o tiene un nivel deficiente. El puntaje asignado es igual a 0\nPARCIAL = Cuando la implementación no está terminada o tiene un nivel regular. El puntaje asignado es igual a 0,5"]
["ASPECTO A EVALUAR EN EL ELEMENTO RECURSOS",null,"RESPUESTA","CALIFICACION","OBSERVACIONES"]
["1. MATERIALES"]
["¿Se cuenta con cinta de acordonamiento o balizamiento?",null,"SI ",1,"Se cuenta con cinta amarillade acordonamiento."]
["¿Se cuenta con extintores?",null,"SI ",1,"Se tienen en:\n\ncuarto de maquinas: 3 de 20 libras ABC  \nsegundo piso: 1 extintor co2  en la entrada\ntercer piso: 1 extintor de 20 libras ABC  entrada cuarto piso:   1 extintor de 20 libras ABC.                                                                                                                                    "]
["¿Se cuenta con camillas?",null,"NO ",0,"Se recomienda realizar la compra de un camilla con arnés tipo araña ajustable, inmovilizador de cuello."]
["¿Se cuenta con botiquines?",null,"SI ",1,"Se cuenta botiquin tipo A y su respectiva hoja de farmacovigilancia.\n"]
["Existe dotación personal para el personal de la brigada y del comité de emergencias? ",null,"SI ",1,"Toda la dotación del personal es para atención de emergencias."]
["Promedio de Materiales",null,null,{"$f":"AVERAGE(D9:D13)","v":0.8},{"$f":"IF(D14=\"\",\"\",IF($D14<0.34,\"MALO\",IF(AND($D14>=0.34,$D14<0.68),\"REGULAR\",\"BUENO\")))","v":"BUENO"}]
["2. EDIFICACIONES"]
["¿El tipo de construcción es sismo resistente o cuenta con reforzamiento estructural?",null,"NO ",0,"La estación actualmente y temporalmente funciona bajo una estructura que no esta acondicionada para ser una estación de bomberos."]
["¿Existen puertas y muros cortafuego, entre otras características de seguridad?",null,"NO ",0,"El personal de la organización refiere que las instalaciones no cuentan con estas caracteristicas de seguridad "]
["¿Se cuenta con escalera de emergencia,  se encuentran en buen estado, poseen doble pasamanos, señalización, antideslizantes, entre otras características de seguridad?",null,"PARCIAL",0.5,"De acuerdo a las caracteristicas del área, la escalera de acceso funciona como escalera de evacuación, se debe realizar mantenimiento en cintaas antideslizantes, cuenta con señalización e iluminación."]
["Las escaleras de la edificación usadas como ruta de evacuación,  se encuentran en buen estado, poseen doble pasamanos, señalización, antideslizantes, entre otras características de seguridad?",null,"PARCIAL",0.5,"Se debe realizar mantenimiento a cintas antideslizantes."]
["Los pasillos y/o balcones cuentan con barandas o muros suficientemente altos para evitar caídas?",null,"SI ",1,"En el tercer piso se cuenta con una terraza la cual cuenta con una baranda de seguridad para evitar caídas."]
["¿Están definidas las rutas de evacuación y salidas de emergencia, debidamente señalizadas y con iluminación alterna?",null,"SI ",1,"Se evidencia señalización de la ruta de evacuación \n(6 señales de Rutas de Evacuación y 1 Salida de Emergencia en buen estado)."]
["¿Se tienen identificados espacios para la ubicación de instalaciones de emergencias (puntos de encuentro, puestos de mando, Módulos de estabilización de heridos, entre otros)?",null,"NO ",0,"La estación actualmente y temporalmente funciona bajo una estructura que no esta acondicionada para ser una estación de bomberos."]
["¿Se tienen asegurados o anclados enseres, gabinetes u objetos que puedan caer?",null,"PARCIAL",0.5,"Realizar una vista de inspección locativa  para verificar los objetos que están ubicados a una altura superior a la cabeza para realizar su debida corrección o ubicación."]
["Existe más de una salida?",null,"PARCIAL",0.5,"Se cuenta con una salida peatotal y ocasionalmente si es necesario se evalua la posibilidad de tomar como salida de emergencia la salida de vehiculos de maquinaria"]
["¿La Organización  y el sector, cuentan con sistemas de pararrayos y polo a tierra?",null,"NO ",0,"No se cuenta con sistema parrayos."]
["¿La Organización está protegido y/o alejada  de árboles o postes que puedan caer?",null,"PARCIAL",0.5,"Hay postes cercanos que pueden caer y obstaculizar la salida."]
["¿Las ventanas, tejas y otros elementos no estructurales, se encuentran asegurados a la estructura?",null,"SI ",1,"Se recomienda realizar inspecciones locativas periódicamente "]
["Los vidrios de las ventanas son de seguridad o tienen película de seguridad",null,"NO ",0,"se recomienda realizar la instalación de películas de seguridad."]
["Las instalaciones cuentan  con un programa de mantenimiento preventivo de las redes (agua, luz, gas, electricidad)",null,"NO ",0,"No se cuenta con programa correctivo sino preventivo."]
["La edificación cuenta con un adecuado sistema eléctrico, con protección contra sobrecargas.",null,"PARCIAL",0.5,"Se evidencian daños en la instalación eléctrica, ya que algunas tomas de energía no se encuentran empotradas a la pared."]
["¿Están señalizados los equipos para atención de emergencias (extintores, camillas, botiquines)?",null,"SI ",1,"Se evidencian los equipos para atención de emergencias señalizados."]
["Promedio Edificaciones",null,null,{"$f":"AVERAGE(D16:D31)","v":0.4375},{"$f":"IF(D32=\"\",\"\",IF($D32<0.34,\"MALO\",IF(AND($D32>=0.34,$D32<0.68),\"REGULAR\",\"BUENO\")))","v":"REGULAR"}]
[]
["¿Se cuenta con algún sistema de alarmas? ",null,"PARCIAL",0.5,"Se cuenta con alarma de activación de emergencia externas, la cual se activa 4 veces para evacuar las instalaciones de la estación. "]
["¿Se cuenta con sistemas automáticos de detección de incendios?",null,"NO ",0,"La sede no cuenta con este sistema."]
["¿Se cuenta con sistemas automáticos de control de incendios?",null,"NO ",0,"La sede no cuenta con estos elementos"]
["¿Se cuenta con sistemas de detección y/o monitoreo de otras amenazas identificadas?",null,"NO ",0,"No se identifican más sistemas en la sede "]
["¿Se cuenta con un sistema de comunicaciones internas?",null,"SI ",1,"Se cuenta con radio de comuniación interna."]
["Se cuenta con un sistema de monitoreo o control de intrusos?",null,"SI ",1,"Se cuenta con camaras de seguridad."]
["¿Se cuenta con gabinetes contra incendio ?",null,"NO ",0,"Realizar un estudio de viabilidad para adquirir uno."]
["¿Se cuenta con medios de transporte para el apoyo logístico en una emergencia (área protegida)?",null,"SI ",1,"Realizar mantenimiento preventivo  para asegurar su buen funcionamiento."]
["¿Se cuenta con programa de mantenimiento preventivo para los equipos de emergencia?",null,"SI ",0,"Se cuenta con programas preventivos para equipos de atención de emergencias."]
["Promedio Equipos",null,null,{"$f":"AVERAGE(D34:D42)","v":0.3888888888888889},{"$f":"IF(D43=\"\",\"\",IF($D43<0.34,\"MALO\",IF(AND($D43>=0.34,$D43<0.68),\"REGULAR\",\"BUENO\")))","v":"REGULAR"}]
["VULNERABILIDAD RECURSOS (SUMA TOTAL DE PROMEDIOS)",null,null,{"$f":"D14+D32+D43","v":1.6263888888888889},{"$f":"IF(D44<=1,\"ALTA\",IF(AND(D44>1,D44<=2),\"MEDIA\",\"BAJA\"))","v":"MEDIA"}]
[]
["Interpretación de la vulnerabilidad por cada aspecto",null,"BUENO","Si el resultado esta dentro del rango 0,68 a 1"]
[null,null,"REGULAR","Si el resultado esta dentro del rango 0,34 a 0,67"]
[null,null,"MALO","Si el resultado esta dentro del rango 0 a 0,33"]
[]
[null,"Interpretación de la vulnerabilidad por cada elemento",null,"0.0 - 1,00","ALTA"]
[null,null,null,"1,01 - 2,00","MEDIA"]
[null,null,null,"2,01 - 3,00","BAJA"]

{"sheet":" Vulsistem","index":5,"n_rows":34,"n_cols":5,"rows_kept":34,"cut":false,"hidden":false,"merged":[[11,0,11,2],[17,0,17,2],[14,0,14,1],[20,0,20,1],[16,0,16,1],[15,0,15,1],[18,0,18,6],[19,4,19,6],[20,4,20,6],[14,4,14,6],[15,4,15,6],[16,4,16,6],[17,4,17,6],[19,0,19,1],[4,0,4,6],[5,0,5,6],[6,4,6,6],[0,0,2,6],[13,0,13,1],[13,4,13,6],[11,4,11,6],[12,0,12,6],[6,0,6,1],[8,0,8,1],[9,0,9,1],[10,0,10,1],[7,0,7,6],[8,4,8,6],[9,4,9,6],[10,4,10,6],[21,4,21,6],[22,4,22,6],[21,0,21,1],[23,4,23,6],[24,4,24,6],[24,0,24,2],[22,0,22,1],[23,0,23,1],[25,4,25,6],[26,0,26,6],[31,1,33,2],[27,0,29,1],[27,3,27,6],[28,3,28,6],[29,3,29,6],[25,0,25,2]]}
["ANÁLISIS DE RIESGOS"]
[]
[]
[]
["EVALUACIÓN DE LA VULNERABILIDAD ELEMENTO:  SISTEMAS O PROCESOS"]
["Para diligenciar la columna \"RESPUESTA\" debe colocar:\n\nSI            = Cuando el aspecto existe o tiene un nivel bueno. El puntaje asignado es igual a 1\nNO          = Cuando el aspecto no existe o tiene un nivel deficiente. El puntaje asignado es igual a 0\nPARCIAL = Cuando la implementación no está terminada o tiene un nivel regular. El puntaje asignado es igual a 0,5"]
["ASPECTO A EVALUAR EN EL ELEMENTO SISTEMAS",null,"RESPUESTA","CALIFICACION","OBSERVACIONES"]
["1. SERVICIOS PÚBLICOS"]
["¿Se cuenta con suministro de energía permanente?",null,"SI ",1,"Servicio prestado por ENEL."]
["¿Se cuenta suministro de agua permanente? ",null,"SI ",1,"Servicio prestado por EMPRESA  DE ACUEDUCTO Y ALCANTARRILLADO DE BOGOTA E.S.P."]
["¿Se cuenta con un programa de gestión de residuos? ",null,"SI ",1,"Se cuenta con programa ambiental"]
["Promedio Servicios Públicos",null,null,{"$f":"AVERAGE(D9:D11)","v":1},{"$f":"IF(D12=\"\",\"\",IF($D12<0.34,\"MALO\",IF(AND($D12>=0.34,$D12<0.68),\"REGULAR\",\"BUENO\")))","v":"BUENO"}]
["2. SISTEMAS ALTERNOS"]
["¿Se cuenta con sistemas redundantes para el suministro de agua (tanque de reserva de agua, pozos subterráneos, carro tanque, entre otros?",null,"SI ",1,"Realizar lavado y mantenimiento del tanque 2 veces al año. "]
["¿Se cuenta con sistemas redundantes para el suministro de energía (plantas eléctricas, UPS, paneles solares, entre otros?",null,"NO ",0,"No se cuenta con planta electrica."]
["¿Existen hidrantes públicos y/o privados ?",null,"SI ",1,"Ninguna"]
["¿Se cuenta con sistema de iluminación de emergencia?",null,"SI ",1,"Se recomienta realizar mantenimiento preventivo."]
["Promedio Sistemas Alternos",null,null,{"$f":"AVERAGE(D14:D17)","v":0.75},{"$f":"IF(D18=\"\",\"\",IF($D18<0.34,\"MALO\",IF(AND($D18>=0.34,$D18<0.68),\"REGULAR\",\"BUENO\")))","v":"BUENO"}]
["3. RECUPERACIÓN "]
["¿Se tienen identificados los procesos vitales para el funcionamiento de su organización?",null,"PARCIAL",0.5]
["¿Se cuenta con un plan de continuidad del negocio?",null,"SI ",1,"Ninguna"]
["¿Se cuenta con algún sistema de seguros para los integrantes de la organización?",null,"SI ",1,"cuenta con diferentes seguros y polizas (seguro de vida, seguro de accidentes viales, asegurados a ARL)"]
["¿Se tienen aseguradas las edificaciones y los bienes en general para cada amenaza identificada?",null,"SI ",1,"Funcionarios aseguran que las edificaciones estan aseguradas. "]
["Se cuenta con un sistema alterno para asegurar los expedientes en medio magnético y con alguna Cía. Aseguradora.",null,"SI ",1,"No se evidencia cumplimiento del item "]
["Promedio Recuperación",null,null,{"$f":"AVERAGE(D20:D24)","v":0.9},{"$f":"IF(D25=\"\",\"\",IF($D25<0.34,\"MALO\",IF(AND($D25>=0.34,$D25<0.68),\"REGULAR\",\"BUENO\")))","v":"BUENO"}]
["VULNERABILIDAD SISTEMAS O PROCESOS (SUMA TOTAL DE PROMEDIOS)",null,null,{"$f":"IF(ISERROR(SUM(D12,D18,D25))=TRUE,\"\",SUM(D12,D18,D25))","v":2.65},{"$f":"IF(D26<=1,\"ALTA\",IF(AND(D26>1,D26<=2),\"MEDIA\",\"BAJA\"))","v":"BAJA"}]
[]
["Interpretación de la vulnerabilidad por cada aspecto",null,"BUENO","Si el resultado esta dentro del rango 0,68 a 1"]
[null,null,"REGULAR","Si el resultado esta dentro del rango 0,34 a 0,67"]
[null,null,"MALO","Si el resultado esta dentro del rango 0 a 0,33"]
[]
[null,"Interpretación de la vulnerabilidad por cada elemento",null,"0.0 - 1,00","ALTA"]
[null,null,null,"1,01 - 2,00","MEDIA"]
[null,null,null,"2,01 - 3,00","BAJA"]

{"sheet":"Analisis del riesgo","index":6,"n_rows":38,"n_cols":23,"rows_kept":38,"cut":false,"hidden":false,"merged":[[0,0,2,22],[31,0,31,22],[4,0,4,22],[9,0,9,22],[18,0,18,22],[6,3,6,20],[6,21,7,22],[6,0,7,2],[7,3,7,8],[7,9,7,14],[7,15,7,20]]}
[]
[]
[]
[]
["CONSOLIDADO ANÁLISIS DE RIESGO"]
[]
["ANALISIS DE AMENAZA",null,null,"ANÁLISIS DE VULNERABILIDAD",null,null,null,null,null,null,null,null,null,null,null,null,null,null,null,null,null,"NIVEL DEL RIESGO"]
[null,null,null,"PERSONAS",null,null,null,null,null,"RECURSOS",null,null,null,null,null,"SISTEMAS O PROCESOS"]
["AMENAZA","CALIFICACIÓN","COLOR DEL ROMBO","1.GESTIÓN ORGANIZACIONAL","2. CAPACITACION Y ENTRENAMIENTO","3. CARACTERÍSTICAS DE SEGURIDAD","TOTAL VULNERABILIDAD DE PERSONAS",null,"COLOR ROMBO PERSONAS","1. MATERIALES","2. EDIFICACIONES","3. EQUIPOS","TOTAL VULNERABILIDAD DE RECURSOS",null,"COLOR ROMBO RECURSOS","1. SERVICIOS PÚBLICOS","2. SISTEMAS ALTERNOS","3. RECUPERACIÓN ","TOTAL VULNERABILIDAD DE SISTEMAS O PROCESOS",null,null,"\nRESULTADO DEL DIAMANTE\nEl color del diamante depende del color de cada uno de los cuadrantes según el resultado obtenido en amenaza, personas, recursos, sistemas y procesos respectivamente","INTERPRETACIÓN"]
["NATURAL"]
[{"$f":"+Amenazas!B6","v":"Movimientos sísmicos"},{"$f":"+Amenazas!F6","v":"PROBABLE"},{"$f":"B11","v":"PROBABLE"},{"$f":"' Vulpersonas'!$D$17","v":0.75},{"$f":"' Vulpersonas'!$D$24","v":1},{"$f":"' Vulpersonas'!$D$31","v":1},{"$f":"' Vulpersonas'!$D$32","v":2.75},{"$f":"IF($G11=\"\",\"\",IF(AND($G11>=0,$G11<=1),\"ALTA\",IF(AND($G11>1,$G11<=2),\"MEDIA\",\"BAJA\")))","v":"BAJA"},{"$f":"H11","v":"BAJA"},{"$f":"Vulrecursos!$D$14","v":0.8},{"$f":"Vulrecursos!$D$32","v":0.4375},{"$f":"Vulrecursos!$D$43","v":0.3888888888888889},{"$f":"Vulrecursos!$D$44","v":1.6263888888888889},{"$f":"IF($M11=\"\",\"\",IF(AND($M11>=0,$M11<=1),\"ALTA\",IF(AND($M11>1,$M11<=2),\"MEDIA\",\"BAJA\")))","v":"MEDIA"},{"$f":"N11","v":"MEDIA"},{"$f":"' Vulsistem'!$D$12","v":1},{"$f":"' Vulsistem'!$D$18","v":0.75},{"$f":"' Vulsistem'!$D$25","v":0.9},{"$f":"' Vulsistem'!$D$26","v":2.65},{"$f":"IF($S11=\"\",\"\",IF(AND($S11>=0,$S11<=1),\"ALTA\",IF(AND($S11>1,$S11<=2),\"MEDIA\",\"BAJA\")))","v":"BAJA"},{"$f":"T11","v":"BAJA"},null,{"$f":"IF(OR(AND(B11=\"INMINENTE\",H11=\"ALTA\",N11=\"ALTA\"),AND(H11=\"ALTA\",N11=\"ALTA\",T11=\"ALTA\"),AND(N11=\"ALTA\",T11=\"ALTA\",B11=\"INMINENTE\"),AND(T11=\"ALTA\",B11=\"INMINENTE\",H11=\"ALTA\")),\"ALTO\",IF(OR(AND(B11=\"PROBABLE\",H11=\"MEDIA\",N11=\"MEDIA\"),AND(H11=\"MEDIA\",N11=\"MEDIA\",T11=\"MEDIA\"),AND(N11=\"MEDIA\",T11=\"MEDIA\",B11=\"PROBABLE\"),AND(T11=\"MEDIA\",B11=\"PROBABLE\",H10=\"MEDIA\"),AND(B10=\"INMINENTE\",H10=\"ALTA\"),AND(H10=\"ALTA\",N10=\"ALTA\"),AND(N10=\"ALTA\",T10=\"ALTA\"),AND(T10=\"ALTA\",B10=\"INMINENTE\"),AND(T10=\"ALTA\",H10=\"ALTA\"),AND(B10=\"INMINENTE\",N11=\"ALTA\"),B11=\"INMINENTE\",H11=\"ALTA\",N11=\"ALTA\",T11=\"ALTA\"),\"MEDIO\",\"BAJO\"))","v":"BAJO"}]
[{"$f":"+Amenazas!B7","v":"Vientos fuertes"},{"$f":"+Amenazas!F7","v":"PROBABLE"},{"$f":"B12","v":"PROBABLE"},{"$f":"' Vulpersonas'!$D$17","v":0.75},{"$f":"' Vulpersonas'!$D$24","v":1},{"$f":"' Vulpersonas'!$D$31","v":1},{"$f":"' Vulpersonas'!$D$32","v":2.75},{"$f":"IF($G12=\"\",\"\",IF(AND($G12>=0,$G12<=1),\"ALTA\",IF(AND($G12>1,$G12<=2),\"MEDIA\",\"BAJA\")))","v":"BAJA"},{"$f":"H12","v":"BAJA"},{"$f":"Vulrecursos!$D$14","v":0.8},{"$f":"Vulrecursos!$D$32","v":0.4375},{"$f":"Vulrecursos!$D$43","v":0.3888888888888889},{"$f":"Vulrecursos!$D$44","v":1.6263888888888889},{"$f":"IF($M12=\"\",\"\",IF(AND($M12>=0,$M12<=1),\"ALTA\",IF(AND($M12>1,$M12<=2),\"MEDIA\",\"BAJA\")))","v":"MEDIA"},{"$f":"N12","v":"MEDIA"},{"$f":"' Vulsistem'!$D$12","v":1},{"$f":"' Vulsistem'!$D$18","v":0.75},{"$f":"' Vulsistem'!$D$25","v":0.9},{"$f":"' Vulsistem'!$D$26","v":2.65},{"$f":"IF($S12=\"\",\"\",IF(AND($S12>=0,$S12<=1),\"ALTA\",IF(AND($S12>1,$S12<=2),\"MEDIA\",\"BAJA\")))","v":"BAJA"},{"$f":"T12","v":"BAJA"},null,{"$f":"IF(OR(AND(B12=\"INMINENTE\",H12=\"ALTA\",N12=\"ALTA\"),AND(H12=\"ALTA\",N12=\"ALTA\",T12=\"ALTA\"),AND(N12=\"ALTA\",T12=\"ALTA\",B12=\"INMINENTE\"),AND(T12=\"ALTA\",B12=\"INMINENTE\",H12=\"ALTA\")),\"ALTO\",IF(OR(AND(B12=\"PROBABLE\",H12=\"MEDIA\",N12=\"MEDIA\"),AND(H12=\"MEDIA\",N12=\"MEDIA\",T12=\"MEDIA\"),AND(N12=\"MEDIA\",T12=\"MEDIA\",B12=\"PROBABLE\"),AND(T12=\"MEDIA\",B12=\"PROBABLE\",H11=\"MEDIA\"),AND(B11=\"INMINENTE\",H11=\"ALTA\"),AND(H11=\"ALTA\",N11=\"ALTA\"),AND(N11=\"ALTA\",T11=\"ALTA\"),AND(T11=\"ALTA\",B11=\"INMINENTE\"),AND(T11=\"ALTA\",H11=\"ALTA\"),AND(B11=\"INMINENTE\",N12=\"ALTA\"),B12=\"INMINENTE\",H12=\"ALTA\",N12=\"ALTA\",T12=\"ALTA\"),\"MEDIO\",\"BAJO\"))","v":"BAJO"}]
[{"$f":"+Amenazas!B8","v":"Tormenta eléctrica (descarga eléctrica)"},{"$f":"+Amenazas!F8","v":"PROBABLE"},"PROBABLE",{"$f":"' Vulpersonas'!$D$17","v":0.75},{"$f":"' Vulpersonas'!$D$24","v":1},{"$f":"' Vulpersonas'!$D$31","v":1},{"$f":"' Vulpersonas'!$D$32","v":2.75},"BAJA","BAJA",{"$f":"Vulrecursos!$D$14","v":0.8},{"$f":"Vulrecursos!$D$32","v":0.4375},{"$f":"Vulrecursos!$D$43","v":0.3888888888888889},{"$f":"Vulrecursos!$D$44","v":1.6263888888888889},{"$f":"IF($M13=\"\",\"\",IF(AND($M13>=0,$M13<=1),\"ALTA\",IF(AND($M13>1,$M13<=2),\"MEDIA\",\"BAJA\")))","v":"MEDIA"},"MEDIA",{"$f":"' Vulsistem'!$D$12","v":1},{"$f":"' Vulsistem'!$D$18","v":0.75},{"$f":"' Vulsistem'!$D$25","v":0.9},{"$f":"' Vulsistem'!$D$26","v":2.65},"BAJA","BAJA",null,"BAJO"]
[{"$f":"+Amenazas!B9","v":"Inundación "},{"$f":"+Amenazas!F9","v":"PROBABLE"},"PROBABLE",{"$f":"' Vulpersonas'!$D$17","v":0.75},{"$f":"' Vulpersonas'!$D$24","v":1},{"$f":"' Vulpersonas'!$D$31","v":1},{"$f":"' Vulpersonas'!$D$32","v":2.75},"BAJA","BAJA",{"$f":"Vulrecursos!$D$14","v":0.8},{"$f":"Vulrecursos!$D$32","v":0.4375},{"$f":"Vulrecursos!$D$43","v":0.3888888888888889},{"$f":"Vulrecursos!$D$44","v":1.6263888888888889},"MEDIA","MEDIA",{"$f":"' Vulsistem'!$D$12","v":1},{"$f":"' Vulsistem'!$D$18","v":0.75},{"$f":"' Vulsistem'!$D$25","v":0.9},{"$f":"' Vulsistem'!$D$26","v":2.65},"BAJA","BAJA",null,"BAJO"]
[{"$f":"+Amenazas!B10","v":"Encharcamiento"},{"$f":"+Amenazas!F10","v":"PROBABLE"},"PROBABLE",{"$f":"' Vulpersonas'!$D$17","v":0.75},{"$f":"' Vulpersonas'!$D$24","v":1},{"$f":"' Vulpersonas'!$D$31","v":1},{"$f":"' Vulpersonas'!$D$32","v":2.75},"BAJA","BAJA",{"$f":"Vulrecursos!$D$14","v":0.8},{"$f":"Vulrecursos!$D$32","v":0.4375},{"$f":"Vulrecursos!$D$43","v":0.3888888888888889},{"$f":"Vulrecursos!$D$44","v":1.6263888888888889},"MEDIA","MEDIA",{"$f":"' Vulsistem'!$D$12","v":1},{"$f":"' Vulsistem'!$D$18","v":0.75},{"$f":"' Vulsistem'!$D$25","v":0.9},{"$f":"' Vulsistem'!$D$26","v":2.65},"BAJA","BAJA",null,"BAJO"]
[{"$f":"+Amenazas!B11","v":"Enfermedades endemicas"},{"$f":"+Amenazas!F11","v":"POSIBLE"},"POSIBLE",{"$f":"' Vulpersonas'!$D$17","v":0.75},{"$f":"' Vulpersonas'!$D$24","v":1},{"$f":"' Vulpersonas'!$D$31","v":1},{"$f":"' Vulpersonas'!$D$32","v":2.75},"BAJA","BAJA",{"$f":"Vulrecursos!$D$14","v":0.8},{"$f":"Vulrecursos!$D$32","v":0.4375},{"$f":"Vulrecursos!$D$43","v":0.3888888888888889},{"$f":"Vulrecursos!$D$44","v":1.6263888888888889},"MEDIA","MEDIA",{"$f":"' Vulsistem'!$D$12","v":1},{"$f":"' Vulsistem'!$D$18","v":0.75},{"$f":"' Vulsistem'!$D$25","v":0.9},{"$f":"' Vulsistem'!$D$26","v":2.65},"BAJA","BAJA",null,"BAJO"]
[{"$f":"+Amenazas!B12","v":"Pandemias "},{"$f":"+Amenazas!F12","v":"PROBABLE"},"PROBABLE",{"$f":"' Vulpersonas'!$D$17","v":0.75},{"$f":"' Vulpersonas'!$D$24","v":1},{"$f":"' Vulpersonas'!$D$31","v":1},{"$f":"' Vulpersonas'!$D$32","v":2.75},"BAJA","BAJA",{"$f":"Vulrecursos!$D$14","v":0.8},{"$f":"Vulrecursos!$D$32","v":0.4375},{"$f":"Vulrecursos!$D$43","v":0.3888888888888889},{"$f":"Vulrecursos!$D$44","v":1.6263888888888889},"MEDIA","MEDIA",{"$f":"' Vulsistem'!$D$12","v":1},{"$f":"' Vulsistem'!$D$18","v":0.75},{"$f":"' Vulsistem'!$D$25","v":0.9},{"$f":"' Vulsistem'!$D$26","v":2.65},"BAJA","BAJA",null,{"$f":"IF(OR(AND(B17=\"INMINENTE\",H17=\"ALTA\",N17=\"ALTA\"),AND(H17=\"ALTA\",N17=\"ALTA\",T17=\"ALTA\"),AND(N17=\"ALTA\",T17=\"ALTA\",B17=\"INMINENTE\"),AND(T17=\"ALTA\",B17=\"INMINENTE\",H17=\"ALTA\")),\"ALTO\",IF(OR(AND(B17=\"PROBABLE\",H17=\"MEDIA\",N17=\"MEDIA\"),AND(H17=\"MEDIA\",N17=\"MEDIA\",T17=\"MEDIA\"),AND(N17=\"MEDIA\",T17=\"MEDIA\",B17=\"PROBABLE\"),AND(T17=\"MEDIA\",B17=\"PROBABLE\",H16=\"MEDIA\"),AND(B16=\"INMINENTE\",H16=\"ALTA\"),AND(H16=\"ALTA\",N16=\"ALTA\"),AND(N16=\"ALTA\",T16=\"ALTA\"),AND(T16=\"ALTA\",B16=\"INMINENTE\"),AND(T16=\"ALTA\",H16=\"ALTA\"),AND(B16=\"INMINENTE\",N17=\"ALTA\"),B17=\"INMINENTE\",H17=\"ALTA\",N17=\"ALTA\",T17=\"ALTA\"),\"MEDIO\",\"BAJO\"))","v":"BAJO"}]
[{"$f":"+Amenazas!B13","v":"Granizadas"},{"$f":"+Amenazas!F13","v":"PROBABLE"},"PROBABLE",{"$f":"' Vulpersonas'!$D$17","v":0.75},{"$f":"' Vulpersonas'!$D$24","v":1},{"$f":"' Vulpersonas'!$D$31","v":1},{"$f":"' Vulpersonas'!$D$32","v":2.75},"BAJA","BAJA",{"$f":"Vulrecursos!$D$14","v":0.8},{"$f":"Vulrecursos!$D$32","v":0.4375},{"$f":"Vulrecursos!$D$43","v":0.3888888888888889},{"$f":"Vulrecursos!$D$44","v":1.6263888888888889},"MEDIA","MEDIA",{"$f":"' Vulsistem'!$D$12","v":1},{"$f":"' Vulsistem'!$D$18","v":0.75},{"$f":"' Vulsistem'!$D$25","v":0.9},{"$f":"' Vulsistem'!$D$26","v":2.65},"BAJA","BAJA",null,{"$f":"IF(OR(AND(B18=\"INMINENTE\",H18=\"ALTA\",N18=\"ALTA\"),AND(H18=\"ALTA\",N18=\"ALTA\",T18=\"ALTA\"),AND(N18=\"ALTA\",T18=\"ALTA\",B18=\"INMINENTE\"),AND(T18=\"ALTA\",B18=\"INMINENTE\",H18=\"ALTA\")),\"ALTO\",IF(OR(AND(B18=\"PROBABLE\",H18=\"MEDIA\",N18=\"MEDIA\"),AND(H18=\"MEDIA\",N18=\"MEDIA\",T18=\"MEDIA\"),AND(N18=\"MEDIA\",T18=\"MEDIA\",B18=\"PROBABLE\"),AND(T18=\"MEDIA\",B18=\"PROBABLE\",H17=\"MEDIA\"),AND(B17=\"INMINENTE\",H17=\"ALTA\"),AND(H17=\"ALTA\",N17=\"ALTA\"),AND(N17=\"ALTA\",T17=\"ALTA\"),AND(T17=\"ALTA\",B17=\"INMINENTE\"),AND(T17=\"ALTA\",H17=\"ALTA\"),AND(B17=\"INMINENTE\",N18=\"ALTA\"),B18=\"INMINENTE\",H18=\"ALTA\",N18=\"ALTA\",T18=\"ALTA\"),\"MEDIO\",\"BAJO\"))","v":"BAJO"}]
["TECNOLOGICOS"]
[{"$f":"+Amenazas!B14","v":"Incendio"},{"$f":"+Amenazas!F14","v":"POSIBLE"},{"$f":"B20","v":"POSIBLE"},{"$f":"' Vulpersonas'!$D$17","v":0.75},{"$f":"' Vulpersonas'!$D$24","v":1},{"$f":"' Vulpersonas'!$D$31","v":1},{"$f":"' Vulpersonas'!$D$32","v":2.75},{"$f":"IF($G20=\"\",\"\",IF(AND($G20>=0,$G20<=1),\"ALTA\",IF(AND($G20>1,$G20<=2),\"MEDIA\",\"BAJA\")))","v":"BAJA"},"BAJA",{"$f":"Vulrecursos!$D$14","v":0.8},{"$f":"Vulrecursos!$D$32","v":0.4375},{"$f":"Vulrecursos!$D$43","v":0.3888888888888889},{"$f":"Vulrecursos!$D$44","v":1.6263888888888889},{"$f":"IF($M20=\"\",\"\",IF(AND($M20>=0,$M20<=1),\"ALTA\",IF(AND($M20>1,$M20<=2),\"MEDIA\",\"BAJA\")))","v":"MEDIA"},{"$f":"N20","v":"MEDIA"},{"$f":"' Vulsistem'!$D$12","v":1},{"$f":"' Vulsistem'!$D$18","v":0.75},{"$f":"' Vulsistem'!$D$25","v":0.9},{"$f":"' Vulsistem'!$D$26","v":2.65},{"$f":"IF($S20=\"\",\"\",IF(AND($S20>=0,$S20<=1),\"ALTA\",IF(AND($S20>1,$S20<=2),\"MEDIA\",\"BAJA\")))","v":"BAJA"},{"$f":"T20","v":"BAJA"},null,{"$f":"IF(OR(AND(B20=\"INMINENTE\",H20=\"ALTA\",N20=\"ALTA\"),AND(H20=\"ALTA\",N20=\"ALTA\",T20=\"ALTA\"),AND(N20=\"ALTA\",T20=\"ALTA\",B20=\"INMINENTE\"),AND(T20=\"ALTA\",B20=\"INMINENTE\",H20=\"ALTA\")),\"ALTO\",IF(OR(AND(B20=\"PROBABLE\",H20=\"MEDIA\",N20=\"MEDIA\"),AND(H20=\"MEDIA\",N20=\"MEDIA\",T20=\"MEDIA\"),AND(N20=\"MEDIA\",T20=\"MEDIA\",B20=\"PROBABLE\"),AND(T20=\"MEDIA\",B20=\"PROBABLE\",H19=\"MEDIA\"),AND(B19=\"INMINENTE\",H19=\"ALTA\"),AND(H19=\"ALTA\",N19=\"ALTA\"),AND(N19=\"ALTA\",T19=\"ALTA\"),AND(T19=\"ALTA\",B19=\"INMINENTE\"),AND(T19=\"ALTA\",H19=\"ALTA\"),AND(B19=\"INMINENTE\",N20=\"ALTA\"),B20=\"INMINENTE\",H20=\"ALTA\",N20=\"ALTA\",T20=\"ALTA\"),\"MEDIO\",\"BAJO\"))","v":"BAJO"}]
[{"$f":"+Amenazas!B15","v":"Fallas estructurales"},{"$f":"+Amenazas!F15","v":"POSIBLE"},"POSIBLE",{"$f":"' Vulpersonas'!$D$17","v":0.75},{"$f":"' Vulpersonas'!$D$24","v":1},{"$f":"' Vulpersonas'!$D$31","v":1},{"$f":"' Vulpersonas'!$D$32","v":2.75},"BAJA","BAJA",{"$f":"Vulrecursos!$D$14","v":0.8},{"$f":"Vulrecursos!$D$32","v":0.4375},{"$f":"Vulrecursos!$D$43","v":0.3888888888888889},{"$f":"Vulrecursos!$D$44","v":1.6263888888888889},"MEDIA","MEDIA",{"$f":"' Vulsistem'!$D$12","v":1},{"$f":"' Vulsistem'!$D$18","v":0.75},{"$f":"' Vulsistem'!$D$25","v":0.9},{"$f":"' Vulsistem'!$D$26","v":2.65},"BAJA","BAJA",null,{"$f":"IF(OR(AND(B21=\"INMINENTE\",H21=\"ALTA\",N21=\"ALTA\"),AND(H21=\"ALTA\",N21=\"ALTA\",T21=\"ALTA\"),AND(N21=\"ALTA\",T21=\"ALTA\",B21=\"INMINENTE\"),AND(T21=\"ALTA\",B21=\"INMINENTE\",H21=\"ALTA\")),\"ALTO\",IF(OR(AND(B21=\"PROBABLE\",H21=\"MEDIA\",N21=\"MEDIA\"),AND(H21=\"MEDIA\",N21=\"MEDIA\",T21=\"MEDIA\"),AND(N21=\"MEDIA\",T21=\"MEDIA\",B21=\"PROBABLE\"),AND(T21=\"MEDIA\",B21=\"PROBABLE\",H20=\"MEDIA\"),AND(B20=\"INMINENTE\",H20=\"ALTA\"),AND(H20=\"ALTA\",N20=\"ALTA\"),AND(N20=\"ALTA\",T20=\"ALTA\"),AND(T20=\"ALTA\",B20=\"INMINENTE\"),AND(T20=\"ALTA\",H20=\"ALTA\"),AND(B20=\"INMINENTE\",N21=\"ALTA\"),B21=\"INMINENTE\",H21=\"ALTA\",N21=\"ALTA\",T21=\"ALTA\"),\"MEDIO\",\"BAJO\"))","v":"BAJO"}]
[{"$f":"+Amenazas!B16","v":"Incendio de vehículos"},{"$f":"+Amenazas!F16","v":"POSIBLE"},"POSIBLE",{"$f":"' Vulpersonas'!$D$17","v":0.75},{"$f":"' Vulpersonas'!$D$24","v":1},{"$f":"' Vulpersonas'!$D$31","v":1},{"$f":"' Vulpersonas'!$D$32","v":2.75},"BAJA","BAJA",{"$f":"Vulrecursos!$D$14","v":0.8},{"$f":"Vulrecursos!$D$32","v":0.4375},{"$f":"Vulrecursos!$D$43","v":0.3888888888888889},{"$f":"Vulrecursos!$D$44","v":1.6263888888888889},"MEDIA","MEDIA",{"$f":"' Vulsistem'!$D$12","v":1},{"$f":"' Vulsistem'!$D$18","v":0.75},{"$f":"' Vulsistem'!$D$25","v":0.9},{"$f":"' Vulsistem'!$D$26","v":2.65},"BAJA","BAJA",null,{"$f":"IF(OR(AND(B22=\"INMINENTE\",H22=\"ALTA\",N22=\"ALTA\"),AND(H22=\"ALTA\",N22=\"ALTA\",T22=\"ALTA\"),AND(N22=\"ALTA\",T22=\"ALTA\",B22=\"INMINENTE\"),AND(T22=\"ALTA\",B22=\"INMINENTE\",H22=\"ALTA\")),\"ALTO\",IF(OR(AND(B22=\"PROBABLE\",H22=\"MEDIA\",N22=\"MEDIA\"),AND(H22=\"MEDIA\",N22=\"MEDIA\",T22=\"MEDIA\"),AND(N22=\"MEDIA\",T22=\"MEDIA\",B22=\"PROBABLE\"),AND(T22=\"MEDIA\",B22=\"PROBABLE\",H21=\"MEDIA\"),AND(B21=\"INMINENTE\",H21=\"ALTA\"),AND(H21=\"ALTA\",N21=\"ALTA\"),AND(N21=\"ALTA\",T21=\"ALTA\"),AND(T21=\"ALTA\",B21=\"INMINENTE\"),AND(T21=\"ALTA\",H21=\"ALTA\"),AND(B21=\"INMINENTE\",N22=\"ALTA\"),B22=\"INMINENTE\",H22=\"ALTA\",N22=\"ALTA\",T22=\"ALTA\"),\"MEDIO\",\"BAJO\"))","v":"BAJO"}]
[{"$f":"+Amenazas!B17","v":"Explosión"},{"$f":"+Amenazas!F17","v":"POSIBLE"},"POSIBLE",{"$f":"' Vulpersonas'!$D$17","v":0.75},{"$f":"' Vulpersonas'!$D$24","v":1},{"$f":"' Vulpersonas'!$D$31","v":1},{"$f":"' Vulpersonas'!$D$32","v":2.75},"BAJA","BAJA",{"$f":"Vulrecursos!$D$14","v":0.8},{"$f":"Vulrecursos!$D$32","v":0.4375},{"$f":"Vulrecursos!$D$43","v":0.3888888888888889},{"$f":"Vulrecursos!$D$44","v":1.6263888888888889},"MEDIA","MEDIA",{"$f":"' Vulsistem'!$D$12","v":1},{"$f":"' Vulsistem'!$D$18","v":0.75},{"$f":"' Vulsistem'!$D$25","v":0.9},{"$f":"' Vulsistem'!$D$26","v":2.65},"BAJA","BAJA",null,"BAJO"]
[{"$f":"+Amenazas!B18","v":"Eléctrico"},{"$f":"+Amenazas!F18","v":"PROBABLE"},"PROBABLE",{"$f":"' Vulpersonas'!$D$17","v":0.75},{"$f":"' Vulpersonas'!$D$24","v":1},{"$f":"' Vulpersonas'!$D$31","v":1},{"$f":"' Vulpersonas'!$D$32","v":2.75},"BAJA","BAJA",{"$f":"Vulrecursos!$D$14","v":0.8},{"$f":"Vulrecursos!$D$32","v":0.4375},{"$f":"Vulrecursos!$D$43","v":0.3888888888888889},{"$f":"Vulrecursos!$D$44","v":1.6263888888888889},"MEDIA","MEDIA",{"$f":"' Vulsistem'!$D$12","v":1},{"$f":"' Vulsistem'!$D$18","v":0.75},{"$f":"' Vulsistem'!$D$25","v":0.9},{"$f":"' Vulsistem'!$D$26","v":2.65},"BAJA","BAJA",null,{"$f":"IF(OR(AND(B24=\"INMINENTE\",H24=\"ALTA\",N24=\"ALTA\"),AND(H24=\"ALTA\",N24=\"ALTA\",T24=\"ALTA\"),AND(N24=\"ALTA\",T24=\"ALTA\",B24=\"INMINENTE\"),AND(T24=\"ALTA\",B24=\"INMINENTE\",H24=\"ALTA\")),\"ALTO\",IF(OR(AND(B24=\"PROBABLE\",H24=\"MEDIA\",N24=\"MEDIA\"),AND(H24=\"MEDIA\",N24=\"MEDIA\",T24=\"MEDIA\"),AND(N24=\"MEDIA\",T24=\"MEDIA\",B24=\"PROBABLE\"),AND(T24=\"MEDIA\",B24=\"PROBABLE\",H23=\"MEDIA\"),AND(B23=\"INMINENTE\",H23=\"ALTA\"),AND(H23=\"ALTA\",N23=\"ALTA\"),AND(N23=\"ALTA\",T23=\"ALTA\"),AND(T23=\"ALTA\",B23=\"INMINENTE\"),AND(T23=\"ALTA\",H23=\"ALTA\"),AND(B23=\"INMINENTE\",N24=\"ALTA\"),B24=\"INMINENTE\",H24=\"ALTA\",N24=\"ALTA\",T24=\"ALTA\"),\"MEDIO\",\"BAJO\"))","v":"BAJO"}]
[{"$f":"+Amenazas!B20","v":"Mecánico"},{"$f":"+Amenazas!F20","v":"POSIBLE"},"POSIBLE",{"$f":"' Vulpersonas'!$D$17","v":0.75},{"$f":"' Vulpersonas'!$D$24","v":1},{"$f":"' Vulpersonas'!$D$31","v":1},{"$f":"' Vulpersonas'!$D$32","v":2.75},"BAJA","BAJA",{"$f":"Vulrecursos!$D$14","v":0.8},{"$f":"Vulrecursos!$D$32","v":0.4375},{"$f":"Vulrecursos!$D$43","v":0.3888888888888889},{"$f":"Vulrecursos!$D$44","v":1.6263888888888889},"MEDIA","MEDIA",{"$f":"' Vulsistem'!$D$12","v":1},{"$f":"' Vulsistem'!$D$18","v":0.75},{"$f":"' Vulsistem'!$D$25","v":0.9},{"$f":"' Vulsistem'!$D$26","v":2.65},"BAJA","BAJA",null,{"$f":"IF(OR(AND(B25=\"INMINENTE\",H25=\"ALTA\",N25=\"ALTA\"),AND(H25=\"ALTA\",N25=\"ALTA\",T25=\"ALTA\"),AND(N25=\"ALTA\",T25=\"ALTA\",B25=\"INMINENTE\"),AND(T25=\"ALTA\",B25=\"INMINENTE\",H25=\"ALTA\")),\"ALTO\",IF(OR(AND(B25=\"PROBABLE\",H25=\"MEDIA\",N25=\"MEDIA\"),AND(H25=\"MEDIA\",N25=\"MEDIA\",T25=\"MEDIA\"),AND(N25=\"MEDIA\",T25=\"MEDIA\",B25=\"PROBABLE\"),AND(T25=\"MEDIA\",B25=\"PROBABLE\",H24=\"MEDIA\"),AND(B24=\"INMINENTE\",H24=\"ALTA\"),AND(H24=\"ALTA\",N24=\"ALTA\"),AND(N24=\"ALTA\",T24=\"ALTA\"),AND(T24=\"ALTA\",B24=\"INMINENTE\"),AND(T24=\"ALTA\",H24=\"ALTA\"),AND(B24=\"INMINENTE\",N25=\"ALTA\"),B25=\"INMINENTE\",H25=\"ALTA\",N25=\"ALTA\",T25=\"ALTA\"),\"MEDIO\",\"BAJO\"))","v":"BAJO"}]
[{"$f":"+Amenazas!B21","v":"Accidentes de tránsito internos"},{"$f":"+Amenazas!F21","v":"POSIBLE"},{"$f":"B26","v":"POSIBLE"},{"$f":"' Vulpersonas'!$D$17","v":0.75},{"$f":"' Vulpersonas'!$D$24","v":1},{"$f":"' Vulpersonas'!$D$31","v":1},{"$f":"' Vulpersonas'!$D$32","v":2.75},"BAJA","BAJA",{"$f":"Vulrecursos!$D$14","v":0.8},{"$f":"Vulrecursos!$D$32","v":0.4375},{"$f":"Vulrecursos!$D$43","v":0.3888888888888889},{"$f":"Vulrecursos!$D$44","v":1.6263888888888889},"MEDIA","MEDIA",{"$f":"' Vulsistem'!$D$12","v":1},{"$f":"' Vulsistem'!$D$18","v":0.75},{"$f":"' Vulsistem'!$D$25","v":0.9},{"$f":"' Vulsistem'!$D$26","v":2.65},"BAJA","BAJA",null,"BAJO"]
[{"$f":"+Amenazas!B22","v":"Accidentes de tránsito "},{"$f":"+Amenazas!F22","v":"PROBABLE"},{"$f":"B27","v":"PROBABLE"},{"$f":"' Vulpersonas'!$D$17","v":0.75},{"$f":"' Vulpersonas'!$D$24","v":1},{"$f":"' Vulpersonas'!$D$31","v":1},{"$f":"' Vulpersonas'!$D$32","v":2.75},"BAJA","BAJA",{"$f":"Vulrecursos!$D$14","v":0.8},{"$f":"Vulrecursos!$D$32","v":0.4375},{"$f":"Vulrecursos!$D$43","v":0.3888888888888889},{"$f":"Vulrecursos!$D$44","v":1.6263888888888889},"MEDIA","MEDIA",{"$f":"' Vulsistem'!$D$12","v":1},{"$f":"' Vulsistem'!$D$18","v":0.75},{"$f":"' Vulsistem'!$D$25","v":0.9},{"$f":"' Vulsistem'!$D$26","v":2.65},"BAJA","BAJA",null,"BAJO"]
[{"$f":"+Amenazas!B23","v":"Acciones inseguras de actores viales / exceso de velocidad / exceso de confianza / Utilización de elementos distractores / Sueño"},{"$f":"+Amenazas!F23","v":"POSIBLE"},"POSIBLE",{"$f":"' Vulpersonas'!$D$17","v":0.75},{"$f":"' Vulpersonas'!$D$24","v":1},{"$f":"' Vulpersonas'!$D$31","v":1},{"$f":"' Vulpersonas'!$D$32","v":2.75},"BAJA","BAJA",{"$f":"Vulrecursos!$D$14","v":0.8},{"$f":"Vulrecursos!$D$32","v":0.4375},{"$f":"Vulrecursos!$D$43","v":0.3888888888888889},{"$f":"Vulrecursos!$D$44","v":1.6263888888888889},"MEDIA","MEDIA",{"$f":"' Vulsistem'!$D$12","v":1},{"$f":"' Vulsistem'!$D$18","v":0.75},{"$f":"' Vulsistem'!$D$25","v":0.9},{"$f":"' Vulsistem'!$D$26","v":2.65},"BAJA","BAJA",null,"BAJO"]
[{"$f":"+Amenazas!B24","v":"Fallas del vehículo"},{"$f":"+Amenazas!F24","v":"PROBABLE"},"PROBABLE",{"$f":"' Vulpersonas'!$D$17","v":0.75},{"$f":"' Vulpersonas'!$D$24","v":1},{"$f":"' Vulpersonas'!$D$31","v":1},{"$f":"' Vulpersonas'!$D$32","v":2.75},"BAJA","BAJA",{"$f":"Vulrecursos!$D$14","v":0.8},{"$f":"Vulrecursos!$D$32","v":0.4375},{"$f":"Vulrecursos!$D$43","v":0.3888888888888889},{"$f":"Vulrecursos!$D$44","v":1.6263888888888889},"MEDIA","MEDIA",{"$f":"' Vulsistem'!$D$12","v":1},{"$f":"' Vulsistem'!$D$18","v":0.75},{"$f":"' Vulsistem'!$D$25","v":0.9},{"$f":"' Vulsistem'!$D$26","v":2.65},"BAJA","BAJA",null,"BAJO"]
[{"$f":"+Amenazas!B25","v":"Intensidad del tráfico"},{"$f":"+Amenazas!F25","v":"PROBABLE"},"PROBABLE",{"$f":"' Vulpersonas'!$D$17","v":0.75},{"$f":"' Vulpersonas'!$D$24","v":1},{"$f":"' Vulpersonas'!$D$31","v":1},{"$f":"' Vulpersonas'!$D$32","v":2.75},"BAJA","BAJA",{"$f":"Vulrecursos!$D$14","v":0.8},{"$f":"Vulrecursos!$D$32","v":0.4375},{"$f":"Vulrecursos!$D$43","v":0.3888888888888889},{"$f":"Vulrecursos!$D$44","v":1.6263888888888889},"MEDIA","MEDIA",{"$f":"' Vulsistem'!$D$12","v":1},{"$f":"' Vulsistem'!$D$18","v":0.75},{"$f":"' Vulsistem'!$D$25","v":0.9},{"$f":"' Vulsistem'!$D$26","v":2.65},"BAJA","BAJA",null,"BAJO"]
[{"$f":"+Amenazas!B26","v":"Estado de la infraestructura vial / Falta de iluminación / Falta de señalización "},{"$f":"+Amenazas!F26","v":"PROBABLE"},"PROBABLE",{"$f":"' Vulpersonas'!$D$17","v":0.75},{"$f":"' Vulpersonas'!$D$24","v":1},{"$f":"' Vulpersonas'!$D$31","v":1},{"$f":"' Vulpersonas'!$D$32","v":2.75},"BAJA","BAJA",{"$f":"Vulrecursos!$D$14","v":0.8},{"$f":"Vulrecursos!$D$32","v":0.4375},{"$f":"Vulrecursos!$D$43","v":0.3888888888888889},{"$f":"Vulrecursos!$D$44","v":1.6263888888888889},"MEDIA","MEDIA",{"$f":"' Vulsistem'!$D$12","v":1},{"$f":"' Vulsistem'!$D$18","v":0.75},{"$f":"' Vulsistem'!$D$25","v":0.9},{"$f":"' Vulsistem'!$D$26","v":2.65},"BAJA","BAJA",null,"BAJO"]
["SOCIAL"]
[{"$f":"+Amenazas!B27","v":"Hurto "},{"$f":"+Amenazas!F27","v":"PROBABLE"},"PROBABLE",{"$f":"' Vulpersonas'!$D$17","v":0.75},{"$f":"' Vulpersonas'!$D$24","v":1},{"$f":"' Vulpersonas'!$D$31","v":1},{"$f":"' Vulpersonas'!$D$32","v":2.75},"BAJA","BAJA",{"$f":"Vulrecursos!$D$14","v":0.8},{"$f":"Vulrecursos!$D$32","v":0.4375},{"$f":"Vulrecursos!$D$43","v":0.3888888888888889},{"$f":"Vulrecursos!$D$44","v":1.6263888888888889},"MEDIA",{"$f":"N33","v":"MEDIA"},{"$f":"' Vulsistem'!$D$12","v":1},{"$f":"' Vulsistem'!$D$18","v":0.75},{"$f":"' Vulsistem'!$D$25","v":0.9},{"$f":"' Vulsistem'!$D$26","v":2.65},"BAJA",{"$f":"T33","v":"BAJA"},null,{"$f":"IF(OR(AND(B33=\"INMINENTE\",H33=\"ALTA\",N33=\"ALTA\"),AND(H33=\"ALTA\",N33=\"ALTA\",T33=\"ALTA\"),AND(N33=\"ALTA\",T33=\"ALTA\",B33=\"INMINENTE\"),AND(T33=\"ALTA\",B33=\"INMINENTE\",H33=\"ALTA\")),\"ALTO\",IF(OR(AND(B33=\"PROBABLE\",H33=\"MEDIA\",N33=\"MEDIA\"),AND(H33=\"MEDIA\",N33=\"MEDIA\",T33=\"MEDIA\"),AND(N33=\"MEDIA\",T33=\"MEDIA\",B33=\"PROBABLE\"),AND(T33=\"MEDIA\",B33=\"PROBABLE\",H32=\"MEDIA\"),AND(B32=\"INMINENTE\",H32=\"ALTA\"),AND(H32=\"ALTA\",N32=\"ALTA\"),AND(N32=\"ALTA\",T32=\"ALTA\"),AND(T32=\"ALTA\",B32=\"INMINENTE\"),AND(T32=\"ALTA\",H32=\"ALTA\"),AND(B32=\"INMINENTE\",N33=\"ALTA\"),B33=\"INMINENTE\",H33=\"ALTA\",N33=\"ALTA\",T33=\"ALTA\"),\"MEDIO\",\"BAJO\"))","v":"BAJO"}]
[{"$f":"+Amenazas!B28","v":"Asalto"},{"$f":"+Amenazas!F28","v":"PROBABLE"},"PROBABLE",{"$f":"' Vulpersonas'!$D$17","v":0.75},{"$f":"' Vulpersonas'!$D$24","v":1},{"$f":"' Vulpersonas'!$D$31","v":1},{"$f":"' Vulpersonas'!$D$32","v":2.75},"BAJA","BAJA",{"$f":"Vulrecursos!$D$14","v":0.8},{"$f":"Vulrecursos!$D$32","v":0.4375},{"$f":"Vulrecursos!$D$43","v":0.3888888888888889},{"$f":"Vulrecursos!$D$44","v":1.6263888888888889},"MEDIA","MEDIA",{"$f":"' Vulsistem'!$D$12","v":1},{"$f":"' Vulsistem'!$D$18","v":0.75},{"$f":"' Vulsistem'!$D$25","v":0.9},{"$f":"' Vulsistem'!$D$26","v":2.65},"BAJA","BAJA",null,"BAJO"]
[{"$f":"+Amenazas!B29","v":"Secuestros"},{"$f":"+Amenazas!F29","v":"POSIBLE"},"POSIBLE",{"$f":"' Vulpersonas'!$D$17","v":0.75},{"$f":"' Vulpersonas'!$D$24","v":1},{"$f":"' Vulpersonas'!$D$31","v":1},{"$f":"' Vulpersonas'!$D$32","v":2.75},"BAJA","BAJA",{"$f":"Vulrecursos!$D$14","v":0.8},{"$f":"Vulrecursos!$D$32","v":0.4375},{"$f":"Vulrecursos!$D$43","v":0.3888888888888889},{"$f":"Vulrecursos!$D$44","v":1.6263888888888889},"MEDIA","MEDIA",{"$f":"' Vulsistem'!$D$12","v":1},{"$f":"' Vulsistem'!$D$18","v":0.75},{"$f":"' Vulsistem'!$D$25","v":0.9},{"$f":"' Vulsistem'!$D$26","v":2.65},"BAJA","BAJA",null,"BAJO"]
[{"$f":"+Amenazas!B30","v":"Asonadas"},{"$f":"+Amenazas!F30","v":"POSIBLE"},"POSIBLE",{"$f":"' Vulpersonas'!$D$17","v":0.75},{"$f":"' Vulpersonas'!$D$24","v":1},{"$f":"' Vulpersonas'!$D$31","v":1},{"$f":"' Vulpersonas'!$D$32","v":2.75},"BAJA","BAJA",{"$f":"Vulrecursos!$D$14","v":0.8},{"$f":"Vulrecursos!$D$32","v":0.4375},{"$f":"Vulrecursos!$D$43","v":0.3888888888888889},{"$f":"Vulrecursos!$D$44","v":1.6263888888888889},"MEDIA","MEDIA",{"$f":"' Vulsistem'!$D$12","v":1},{"$f":"' Vulsistem'!$D$18","v":0.75},{"$f":"' Vulsistem'!$D$25","v":0.9},{"$f":"' Vulsistem'!$D$26","v":2.65},"BAJA","BAJA",null,"BAJO"]
[{"$f":"+Amenazas!B31","v":"Terrorismo"},{"$f":"+Amenazas!F31","v":"POSIBLE"},"POSIBLE",{"$f":"' Vulpersonas'!$D$17","v":0.75},{"$f":"' Vulpersonas'!$D$24","v":1},{"$f":"' Vulpersonas'!$D$31","v":1},{"$f":"' Vulpersonas'!$D$32","v":2.75},"BAJA","BAJA",{"$f":"Vulrecursos!$D$14","v":0.8},{"$f":"Vulrecursos!$D$32","v":0.4375},{"$f":"Vulrecursos!$D$43","v":0.3888888888888889},{"$f":"Vulrecursos!$D$44","v":1.6263888888888889},"MEDIA","MEDIA",{"$f":"' Vulsistem'!$D$12","v":1},{"$f":"' Vulsistem'!$D$18","v":0.75},{"$f":"' Vulsistem'!$D$25","v":0.9},{"$f":"' Vulsistem'!$D$26","v":2.65},"BAJA","BAJA",null,"BAJO"]
[{"$f":"+Amenazas!B32","v":"Concentraciones masivas"},{"$f":"+Amenazas!F32","v":"POSIBLE"},"POSIBLE",{"$f":"' Vulpersonas'!$D$17","v":0.75},{"$f":"' Vulpersonas'!$D$24","v":1},{"$f":"' Vulpersonas'!$D$31","v":1},{"$f":"' Vulpersonas'!$D$32","v":2.75},"BAJA","BAJA",{"$f":"Vulrecursos!$D$14","v":0.8},{"$f":"Vulrecursos!$D$32","v":0.4375},{"$f":"Vulrecursos!$D$43","v":0.3888888888888889},{"$f":"Vulrecursos!$D$44","v":1.6263888888888889},"MEDIA","MEDIA",{"$f":"' Vulsistem'!$D$12","v":1},{"$f":"' Vulsistem'!$D$18","v":0.75},{"$f":"' Vulsistem'!$D$25","v":0.9},{"$f":"' Vulsistem'!$D$26","v":2.65},"BAJA","BAJA",null,"BAJO"]